[Event "December 19 Early 2023"]
[Site "https://www.chess.com"]
[Date "2023.12.19"]
[Round "5"]
[White "Berezin, Viktor"]
[Black "Blokhin, Sofia"]
[Result "0-1"]
[Board "172"]
[TimeControl "180+1"]
[WhiteFideId "14107872"]
[BlackFideId "4508190"]
[WhiteElo "2310"]
[BlackElo "1916"]
[WhiteTeam "UKR"]
[BlackTeam "EST"]
[WhiteClock "0:00:17"]
[BlackClock "0:00:12"]

1. d4 {[%clk 0:02:39]}  f5 {[%clk 0:02:58]} 2. g3 {[%clk 0:02:38]}  Nf6 {[%clk 0:02:57]} 3. Bg2 {[%clk 0:02:38]}  g6 {[%clk 0:02:57]} 4. Nh3 {[%clk 0:02:39]}  Bg7 {[%clk 0:02:58]} 5. Nf4 {[%clk 0:02:39]}  O-O {[%clk 0:02:58]} 6. h4 {[%clk 0:02:40]}  d6 {[%clk 0:02:51]} 7. c3 {[%clk 0:02:40]}  Qe8 {[%clk 0:02:45]} 8. h5 {[%clk 0:02:37]}  g5 {[%clk 0:02:34]} 9. h6 {[%clk 0:02:33]}  Bh8 {[%clk 0:02:30]} 10. Nh3 {[%clk 0:02:31]}  g4 {[%clk 0:02:25]} 11. Ng5 {[%clk 0:02:26]}  Qg6 {[%clk 0:02:04]} 12. Qb3+ {[%clk 0:02:21]}  d5 {[%clk 0:01:48]} 13. c4 {[%clk 0:01:56]}  Ne4 {[%clk 0:01:24]} 14. Nxe4 {[%clk 0:01:46]}  dxe4 {[%clk 0:01:17]} 15. e3 {[%clk 0:01:41]}  Nc6 {[%clk 0:01:08]} 16. Nc3 {[%clk 0:01:37]}  e6 {[%clk 0:00:55]} 17. Bd2 {[%clk 0:01:23]}  b6 {[%clk 0:00:52]} 18. O-O-O {[%clk 0:01:21]}  Na5 {[%clk 0:00:48]} 19. Qb4 {[%clk 0:01:19]}  Bf6 {[%clk 0:00:30]} 20. Nb5 {[%clk 0:01:14]}  Qf7 {[%clk 0:00:26]} 21. c5 {[%clk 0:01:10]}  a6 {[%clk 0:00:24]} 22. Nc3 {[%clk 0:01:06]}  Nc6 {[%clk 0:00:25]} 23. Qa4 {[%clk 0:01:01]}  Bd7 {[%clk 0:00:24]} 24. cxb6 {[%clk 0:01:00]}  cxb6 {[%clk 0:00:24]} 25. Qa3 {[%clk 0:01:00]}  Rfc8 {[%clk 0:00:24]} 26. Kb1 {[%clk 0:01:00]}  b5 {[%clk 0:00:23]} 27. Ne2 {[%clk 0:00:56]}  a5 {[%clk 0:00:23]} 28. b3 {[%clk 0:00:51]}  b4 {[%clk 0:00:23]} 29. Qb2 {[%clk 0:00:50]}  a4 {[%clk 0:00:24]} 30. Nf4 {[%clk 0:00:50]}  e5 {[%clk 0:00:22]} 31. Nh5 {[%clk 0:00:46]}  exd4 {[%clk 0:00:20]} 32. Nxf6+ {[%clk 0:00:45]}  Qxf6 {[%clk 0:00:21]} 33. Bf1 {[%clk 0:00:40]}  axb3 {[%clk 0:00:21]} 34. axb3 {[%clk 0:00:39]}  Ra3 {[%clk 0:00:17]} 35. Rh5 {[%clk 0:00:37]}  Rca8 {[%clk 0:00:16]} 36. Bc4+ {[%clk 0:00:37]}  Kf8 {[%clk 0:00:14]} 37. exd4 {[%clk 0:00:37]}  Ra1+ {[%clk 0:00:14]} 38. Kc2 {[%clk 0:00:32]}  Nxd4+ {[%clk 0:00:14]} 39. Qxd4 {[%clk 0:00:29]}  R8a2+ {[%clk 0:00:12]} 40. Qb2 {[%clk 0:00:17]}  Qxb2# {[%clk 0:00:12]} 0-1

[Event "December 19 Early 2023"]
[Site "https://www.chess.com"]
[Date "2023.12.19"]
[Round "5"]
[White "Rodriguez Santiago, Jaime"]
[Black "Parfenov, Viktor N."]
[Result "0-1"]
[Board "174"]
[TimeControl "180+1"]
[WhiteFideId "3100898"]
[BlackFideId "4165969"]
[WhiteElo "2025"]
[BlackElo "2093"]
[WhiteTeam "PUR"]
[BlackTeam "RUS"]
[WhiteClock "0:00:10"]
[BlackClock "0:00:15"]

1. c4 {[%clk 0:03:00]}  e6 {[%clk 0:02:59]} 2. Nf3 {[%clk 0:02:58]}  d5 {[%clk 0:02:59]} 3. g3 {[%clk 0:02:57]}  Nf6 {[%clk 0:02:58]} 4. Bg2 {[%clk 0:02:57]}  Be7 {[%clk 0:02:59]} 5. O-O {[%clk 0:02:57]}  O-O {[%clk 0:02:59]} 6. b3 {[%clk 0:02:57]}  b6 {[%clk 0:02:58]} 7. Bb2 {[%clk 0:02:57]}  Bb7 {[%clk 0:02:57]} 8. e3 {[%clk 0:02:57]}  c5 {[%clk 0:02:57]} 9. d3 {[%clk 0:02:56]}  Nc6 {[%clk 0:02:50]} 10. Qe2 {[%clk 0:02:55]}  d4 {[%clk 0:02:42]} 11. exd4 {[%clk 0:02:46]}  Nxd4 {[%clk 0:02:42]} 12. Nxd4 {[%clk 0:02:45]}  Bxg2 {[%clk 0:02:41]} 13. Kxg2 {[%clk 0:02:40]}  cxd4 {[%clk 0:02:41]} 14. Nd2 {[%clk 0:02:39]}  Bc5 {[%clk 0:02:07]} 15. Nf3 {[%clk 0:02:34]}  Re8 {[%clk 0:02:03]} 16. Ne5 {[%clk 0:02:29]}  Nd7 {[%clk 0:01:51]} 17. Nc6 {[%clk 0:02:15]}  Qf6 {[%clk 0:01:50]} 18. b4 {[%clk 0:02:11]}  e5 {[%clk 0:01:46]} 19. b5 {[%clk 0:02:02]}  Nb8 {[%clk 0:01:38]} 20. Nxd4 {[%clk 0:01:54]}  e4 {[%clk 0:01:24]} 21. Nb3 {[%clk 0:01:48]}  Qg6 {[%clk 0:01:22]} 22. Nxc5 {[%clk 0:01:37]}  bxc5 {[%clk 0:01:22]} 23. dxe4 {[%clk 0:01:36]}  Rxe4 {[%clk 0:01:19]} 24. Qf3 {[%clk 0:01:34]}  Nd7 {[%clk 0:01:17]} 25. Rad1 {[%clk 0:01:31]}  Nf8 {[%clk 0:01:11]} 26. h4 {[%clk 0:01:09]}  Rae8 {[%clk 0:01:11]} 27. h5 {[%clk 0:01:08]}  Qe6 {[%clk 0:01:07]} 28. Qc3 {[%clk 0:00:50]}  f6 {[%clk 0:01:05]} 29. Rd5 {[%clk 0:00:48]}  h6 {[%clk 0:01:01]} 30. Rxc5 {[%clk 0:00:43]}  Nd7 {[%clk 0:00:55]} 31. Rd5 {[%clk 0:00:43]}  Nb6 {[%clk 0:00:52]} 32. Rd4 {[%clk 0:00:41]}  Nxc4 {[%clk 0:00:49]} 33. Ba1 {[%clk 0:00:30]}  Nb6 {[%clk 0:00:42]} 34. Rfd1 {[%clk 0:00:24]}  Qf5 {[%clk 0:00:40]} 35. Rxe4 {[%clk 0:00:22]}  Rxe4 {[%clk 0:00:40]} 36. Qf3 {[%clk 0:00:22]}  Qe6 {[%clk 0:00:36]} 37. Rd8+ {[%clk 0:00:20]}  Kf7 {[%clk 0:00:35]} 38. a4 {[%clk 0:00:19]}  Nxa4 {[%clk 0:00:33]} 39. Rd7+ {[%clk 0:00:10]}  Qxd7 {[%clk 0:00:29]} 40. Qxe4 {[%clk 0:00:10]}  Nb6 {[%clk 0:00:22]} 41. Qg6+ {[%clk 0:00:10]}  Kf8 {[%clk 0:00:20]} 42. Bc3 {[%clk 0:00:10]}  Nd5 {[%clk 0:00:19]} 43. Bb2 {[%clk 0:00:09]}  Qxb5 {[%clk 0:00:18]} 44. Ba3+ {[%clk 0:00:09]}  Kg8 {[%clk 0:00:15]} 45. Qe4 {[%clk 0:00:05]}  Qd7 {[%clk 0:00:12]} 46. Qc4 {[%clk 0:00:05]}  Kh8 {[%clk 0:00:11]} 47. Kh2 {[%clk 0:00:05]}  a5 {[%clk 0:00:08]} 48. Bf8 {[%clk 0:00:05]}  Qf7 {[%clk 0:00:07]} 49. Bc5 {[%clk 0:00:03]}  Qxh5+ {[%clk 0:00:07]} 50. Kg2 {[%clk 0:00:04]}  Qf7 {[%clk 0:00:06]} 51. Qe4 {[%clk 0:00:04]}  Kg8 {[%clk 0:00:05]} 52. Be3 {[%clk 0:00:05]}  Ne7 {[%clk 0:00:05]} 53. Bf4 {[%clk 0:00:05]}  Qd5 {[%clk 0:00:05]} 54. Qxd5+ {[%clk 0:00:05]}  Nxd5 {[%clk 0:00:06]} 55. Bc1 {[%clk 0:00:05]}  a4 {[%clk 0:00:06]} 56. Kf3 {[%clk 0:00:05]}  Kf7 {[%clk 0:00:06]} 57. Ke4 {[%clk 0:00:06]}  Ke6 {[%clk 0:00:07]} 58. f4 {[%clk 0:00:06]}  f5+ {[%clk 0:00:07]} 59. Kd4 {[%clk 0:00:06]}  Kd6 {[%clk 0:00:07]} 60. Ba3+ {[%clk 0:00:06]}  Ke6 {[%clk 0:00:07]} 61. Kc5 {[%clk 0:00:06]}  Nf6 {[%clk 0:00:07]} 62. Kb5 {[%clk 0:00:06]}  Ne4 {[%clk 0:00:07]} 63. Kxa4 {[%clk 0:00:06]}  Nxg3 {[%clk 0:00:07]} 64. Kb3 {[%clk 0:00:06]}  g6 {[%clk 0:00:08]} 65. Kc2 {[%clk 0:00:07]}  Ne2 {[%clk 0:00:08]} 66. Kd2 {[%clk 0:00:04]}  Nxf4 {[%clk 0:00:08]} 67. Ke3 {[%clk 0:00:05]}  Nd5+ {[%clk 0:00:08]} 68. Kf3 {[%clk 0:00:05]}  Nf6 {[%clk 0:00:08]} 69. Kg3 {[%clk 0:00:06]}  g5 {[%clk 0:00:08]} 70. Bb2 {[%clk 0:00:06]}  Kf7 {[%clk 0:00:08]} 71. Kh3 {[%clk 0:00:07]}  Kg6 {[%clk 0:00:08]} 72. Bc1 {[%clk 0:00:07]}  h5 {[%clk 0:00:08]} 73. Kh2 {[%clk 0:00:08]}  f4 {[%clk 0:00:09]} 74. Kh3 {[%clk 0:00:09]}  Kf5 {[%clk 0:00:10]} 75. Kg2 {[%clk 0:00:09]}  Ne4 {[%clk 0:00:10]} 76. Kh2 {[%clk 0:00:09]}  g4 {[%clk 0:00:11]} 77. Ba3 {[%clk 0:00:09]}  h4 {[%clk 0:00:11]} 78. Bc1 {[%clk 0:00:10]}  Ng5 {[%clk 0:00:11]} 79. Kg2 {[%clk 0:00:10]}  g3 {[%clk 0:00:12]} 80. Bd2 {[%clk 0:00:09]}  Kg4 {[%clk 0:00:12]} 81. Bc3 {[%clk 0:00:09]}  h3+ {[%clk 0:00:13]} 82. Kh1 {[%clk 0:00:10]}  f3 {[%clk 0:00:13]} 83. Be1 {[%clk 0:00:09]}  Ne4 {[%clk 0:00:14]} 84. Kg1 {[%clk 0:00:09]}  h2+ {[%clk 0:00:14]} 85. Kh1 {[%clk 0:00:09]}  f2 {[%clk 0:00:14]} 86. Bxf2 {[%clk 0:00:09]}  Nxf2+ {[%clk 0:00:14]} 87. Kg2 {[%clk 0:00:10]}  h1=Q# {[%clk 0:00:15]} 0-1

[Event "December 19 Early 2023"]
[Site "https://www.chess.com"]
[Date "2023.12.19"]
[Round "5"]
[White "Liu, Kelsey"]
[Black "Sreyas Payyappat"]
[Result "0-1"]
[Board "175"]
[TimeControl "180+1"]
[WhiteFideId "30944481"]
[BlackFideId "46674969"]
[WhiteElo "2252"]
[BlackElo "2043"]
[WhiteTeam "USA"]
[BlackTeam "IND"]
[WhiteClock "0:02:20"]
[BlackClock "0:02:07"]

1. d4 {[%clk 0:03:00]}  Nf6 {[%clk 0:02:55]} 2. Nf3 {[%clk 0:02:58]}  c5 {[%clk 0:02:53]} 3. c3 {[%clk 0:02:57]}  e6 {[%clk 0:02:52]} 4. Bf4 {[%clk 0:02:57]}  Nc6 {[%clk 0:02:49]} 5. e3 {[%clk 0:02:57]}  Nh5 {[%clk 0:02:48]} 6. Bg3 {[%clk 0:02:56]}  d5 {[%clk 0:02:45]} 7. Nbd2 {[%clk 0:02:56]}  Qb6 {[%clk 0:02:43]} 8. Qc2 {[%clk 0:02:55]}  Nxg3 {[%clk 0:02:41]} 9. hxg3 {[%clk 0:02:55]}  g6 {[%clk 0:02:41]} 10. Bd3 {[%clk 0:02:53]}  Bg7 {[%clk 0:02:37]} 11. g4 {[%clk 0:02:47]}  a6 {[%clk 0:02:28]} 12. g5 {[%clk 0:02:46]}  c4 {[%clk 0:02:27]} 13. Be2 {[%clk 0:02:46]}  Qc7 {[%clk 0:02:27]} 14. O-O {[%clk 0:02:31]}  h6 {[%clk 0:02:18]} 15. g3 {[%clk 0:02:27]}  hxg5 {[%clk 0:02:09]} 16. Nxg5 {[%clk 0:02:27]}  Bh6 {[%clk 0:02:09]} 17. f4 {[%clk 0:02:20]}  Bxg5 {[%clk 0:02:08]} 18. fxg5 {[%clk 0:02:20]}  Qxg3# {[%clk 0:02:07]} 0-1

[Event "December 19 Early 2023"]
[Site "https://www.chess.com"]
[Date "2023.12.19"]
[Round "5"]
[White "Vasli, Aref"]
[Black "Hernando Rodrigo, Julio Antonio"]
[Result "1/2-1/2"]
[Board "178"]
[TimeControl "180+1"]
[WhiteFideId "417521"]
[BlackFideId "2208350"]
[WhiteElo "2274"]
[BlackElo "2260"]
[WhiteTeam "IRI"]
[BlackTeam "ESP"]
[WhiteClock "0:00:17"]
[BlackClock "0:00:34"]

1. e4 {[%clk 0:02:51]}  e6 {[%clk 0:02:58]} 2. d4 {[%clk 0:02:50]}  d5 {[%clk 0:02:58]} 3. Nc3 {[%clk 0:02:50]}  Bb4 {[%clk 0:02:56]} 4. e5 {[%clk 0:02:45]}  c5 {[%clk 0:02:55]} 5. Bd2 {[%clk 0:02:43]}  Ne7 {[%clk 0:02:53]} 6. Nb5 {[%clk 0:02:43]}  Bxd2+ {[%clk 0:02:51]} 7. Qxd2 {[%clk 0:02:44]}  O-O {[%clk 0:02:50]} 8. c3 {[%clk 0:02:43]}  Bd7 {[%clk 0:02:46]} 9. f4 {[%clk 0:02:39]}  Qb6 {[%clk 0:02:43]} 10. Nd6 {[%clk 0:02:36]}  cxd4 {[%clk 0:02:41]} 11. cxd4 {[%clk 0:02:36]}  Nc8 {[%clk 0:02:40]} 12. Nxc8 {[%clk 0:02:32]}  Rxc8 {[%clk 0:02:41]} 13. Nf3 {[%clk 0:02:32]}  Nc6 {[%clk 0:02:39]} 14. Rc1 {[%clk 0:02:22]}  g6 {[%clk 0:02:35]} 15. Be2 {[%clk 0:02:18]}  Na5 {[%clk 0:02:21]} 16. Rxc8+ {[%clk 0:01:48]}  Rxc8 {[%clk 0:02:20]} 17. b3 {[%clk 0:01:48]}  Bb5 {[%clk 0:02:16]} 18. Kf2 {[%clk 0:01:44]}  Bxe2 {[%clk 0:02:13]} 19. Kxe2 {[%clk 0:01:37]}  Nc6 {[%clk 0:02:12]} 20. Kf2 {[%clk 0:00:53]}  Nb4 {[%clk 0:02:09]} 21. Kg3 {[%clk 0:00:47]}  Rc2 {[%clk 0:02:07]} 22. Qe3 {[%clk 0:00:47]}  Rxa2 {[%clk 0:02:03]} 23. Rc1 {[%clk 0:00:47]}  Rc2 {[%clk 0:01:58]} 24. Rxc2 {[%clk 0:00:40]}  Nxc2 {[%clk 0:01:59]} 25. Qc3 {[%clk 0:00:40]}  Qc6 {[%clk 0:01:58]} 26. Qa5 {[%clk 0:00:38]}  Qc8 {[%clk 0:01:23]} 27. Qxa7 {[%clk 0:00:35]}  Ne3 {[%clk 0:01:23]} 28. h4 {[%clk 0:00:33]}  Nf5+ {[%clk 0:01:23]} 29. Kh3 {[%clk 0:00:34]}  h5 {[%clk 0:01:23]} 30. Qa5 {[%clk 0:00:31]}  Kg7 {[%clk 0:01:19]} 31. Qb6 {[%clk 0:00:30]}  Qc1 {[%clk 0:01:13]} 32. Qd8 {[%clk 0:00:27]}  Qxf4 {[%clk 0:01:12]} 33. Qf6+ {[%clk 0:00:26]}  Kg8 {[%clk 0:01:12]} 34. Qg5 {[%clk 0:00:24]}  Qxg5 {[%clk 0:01:10]} 35. hxg5 {[%clk 0:00:25]}  Kf8 {[%clk 0:01:04]} 36. g4 {[%clk 0:00:25]}  hxg4+ {[%clk 0:01:02]} 37. Kxg4 {[%clk 0:00:25]}  Ke8 {[%clk 0:01:02]} 38. Kh3 {[%clk 0:00:18]}  Kd7 {[%clk 0:01:02]} 39. Kg2 {[%clk 0:00:19]}  Kc6 {[%clk 0:01:02]} 40. Kf2 {[%clk 0:00:20]}  Kb5 {[%clk 0:01:03]} 41. Ke2 {[%clk 0:00:20]}  Kb4 {[%clk 0:01:03]} 42. Kd2 {[%clk 0:00:21]}  Kxb3 {[%clk 0:01:03]} 43. Kd3 {[%clk 0:00:21]}  b5 {[%clk 0:01:02]} 44. Nd2+ {[%clk 0:00:21]}  Ka2 {[%clk 0:01:00]} 45. Kc3 {[%clk 0:00:21]}  Ng3 {[%clk 0:00:57]} 46. Kb4 {[%clk 0:00:21]}  Ne4 {[%clk 0:00:55]} 47. Nf3 {[%clk 0:00:21]}  Kb2 {[%clk 0:00:53]} 48. Kxb5 {[%clk 0:00:21]}  Kc3 {[%clk 0:00:54]} 49. Kc6 {[%clk 0:00:21]}  Kd3 {[%clk 0:00:47]} 50. Kd7 {[%clk 0:00:22]}  Ke3 {[%clk 0:00:48]} 51. Ke7 {[%clk 0:00:15]}  Kxf3 {[%clk 0:00:47]} 52. Kxf7 {[%clk 0:00:16]}  Nxg5+ {[%clk 0:00:47]} 53. Kxg6 {[%clk 0:00:16]}  Ke4 {[%clk 0:00:47]} 54. Kxg5 {[%clk 0:00:16]}  Kxd4 {[%clk 0:00:46]} 55. Kf6 {[%clk 0:00:17]}  Kc5 {[%clk 0:00:40]} 56. Kxe6 {[%clk 0:00:17]}  d4 {[%clk 0:00:41]} 57. Kf7 {[%clk 0:00:15]}  d3 {[%clk 0:00:42]} 58. e6 {[%clk 0:00:15]}  d2 {[%clk 0:00:42]} 59. e7 {[%clk 0:00:16]}  d1=Q {[%clk 0:00:34]} 60. e8=Q {[%clk 0:00:17]} 1/2-1/2

[Event "December 19 Early 2023"]
[Site "https://www.chess.com"]
[Date "2023.12.19"]
[Round "5"]
[White "Zainullina, Nataliya"]
[Black "Dmitrenko, Viktor"]
[Result "1/2-1/2"]
[Board "179"]
[TimeControl "180+1"]
[WhiteFideId "4145488"]
[BlackFideId "14110270"]
[WhiteElo "2235"]
[BlackElo "2292"]
[WhiteTeam "RUS"]
[BlackTeam "UKR"]
[WhiteClock "0:00:10"]
[BlackClock "0:00:04"]

1. e4 {[%clk 0:03:00]}  c5 {[%clk 0:02:59]} 2. Nc3 {[%clk 0:03:00]}  Nc6 {[%clk 0:02:58]} 3. g3 {[%clk 0:02:59]}  g6 {[%clk 0:02:57]} 4. Bg2 {[%clk 0:02:59]}  Bg7 {[%clk 0:02:57]} 5. d3 {[%clk 0:02:58]}  Rb8 {[%clk 0:02:55]} 6. Be3 {[%clk 0:02:58]}  d6 {[%clk 0:02:55]} 7. Qd2 {[%clk 0:02:58]}  b5 {[%clk 0:02:54]} 8. h3 {[%clk 0:02:54]}  b4 {[%clk 0:02:53]} 9. Nd1 {[%clk 0:02:53]}  e6 {[%clk 0:02:44]} 10. Ne2 {[%clk 0:02:50]}  Nd4 {[%clk 0:02:43]} 11. O-O {[%clk 0:02:43]}  Ne7 {[%clk 0:02:37]} 12. c3 {[%clk 0:02:41]}  bxc3 {[%clk 0:02:35]} 13. bxc3 {[%clk 0:02:40]}  Nxe2+ {[%clk 0:02:35]} 14. Qxe2 {[%clk 0:02:40]}  O-O {[%clk 0:02:35]} 15. f4 {[%clk 0:02:38]}  Qa5 {[%clk 0:02:20]} 16. Bd2 {[%clk 0:02:30]}  Bd7 {[%clk 0:01:51]} 17. g4 {[%clk 0:02:17]}  Rfe8 {[%clk 0:00:59]} 18. Qe1 {[%clk 0:01:58]}  f5 {[%clk 0:00:56]} 19. Ne3 {[%clk 0:01:48]}  Qa6 {[%clk 0:00:49]} 20. Qe2 {[%clk 0:01:30]}  fxe4 {[%clk 0:00:26]} 21. Bxe4 {[%clk 0:01:28]}  d5 {[%clk 0:00:27]} 22. Bg2 {[%clk 0:01:25]}  d4 {[%clk 0:00:20]} 23. Nd1 {[%clk 0:01:14]}  Nd5 {[%clk 0:00:16]} 24. c4 {[%clk 0:01:05]}  Nc3 {[%clk 0:00:15]} 25. Qe1 {[%clk 0:00:55]}  Nxd1 {[%clk 0:00:11]} 26. Qxd1 {[%clk 0:00:49]}  Bc6 {[%clk 0:00:11]} 27. Bxc6 {[%clk 0:00:41]}  Qxc6 {[%clk 0:00:12]} 28. Rb1 {[%clk 0:00:36]}  e5 {[%clk 0:00:08]} 29. Qe2 {[%clk 0:00:33]}  exf4 {[%clk 0:00:06]} 30. Rxb8 {[%clk 0:00:32]}  Rxb8 {[%clk 0:00:07]} 31. Bxf4 {[%clk 0:00:31]}  Re8 {[%clk 0:00:06]} 32. Qf2 {[%clk 0:00:28]}  Qe6 {[%clk 0:00:06]} 33. Bg3 {[%clk 0:00:24]}  Rf8 {[%clk 0:00:06]} 34. Qe1 {[%clk 0:00:20]}  Rxf1+ {[%clk 0:00:02]} 35. Kxf1 {[%clk 0:00:20]}  Qxe1+ {[%clk 0:00:02]} 36. Kxe1 {[%clk 0:00:19]}  Bf8 {[%clk 0:00:02]} 37. Ke2 {[%clk 0:00:19]}  Kf7 {[%clk 0:00:03]} 38. Kf3 {[%clk 0:00:19]}  Ke6 {[%clk 0:00:04]} 39. Ke4 {[%clk 0:00:19]}  Bd6 {[%clk 0:00:04]} 40. Bxd6 {[%clk 0:00:19]}  Kxd6 {[%clk 0:00:04]} 41. h4 {[%clk 0:00:17]}  h6 {[%clk 0:00:04]} 42. a4 {[%clk 0:00:17]}  Ke6 {[%clk 0:00:03]} 43. a5 {[%clk 0:00:14]}  a6 {[%clk 0:00:04]} 44. Kf4 {[%clk 0:00:13]}  Kf6 {[%clk 0:00:04]} 45. Ke4 {[%clk 0:00:13]}  Ke6 {[%clk 0:00:04]} 46. Kf3 {[%clk 0:00:10]}  Ke5 {[%clk 0:00:03]} 47. Kg3 {[%clk 0:00:10]}  Ke6 {[%clk 0:00:03]} 48. Kf4 {[%clk 0:00:10]}  Kf6 {[%clk 0:00:03]} 49. Ke4 {[%clk 0:00:10]}  Ke6 {[%clk 0:00:04]} 1/2-1/2

[Event "December 19 Early 2023"]
[Site "https://www.chess.com"]
[Date "2023.12.19"]
[Round "5"]
[White "Novak, Ratko"]
[Black "Shadhursshaan R"]
[Result "0-1"]
[Board "180"]
[TimeControl "180+1"]
[WhiteFideId "14511827"]
[BlackFideId "45024138"]
[WhiteElo "2036"]
[BlackElo "1760"]
[WhiteTeam "CRO"]
[BlackTeam "IND"]
[WhiteClock "0:00:10"]
[BlackClock "0:02:03"]

1. d4 {[%clk 0:03:00]}  Nf6 {[%clk 0:02:55]} 2. c4 {[%clk 0:03:01]}  e6 {[%clk 0:02:55]} 3. a3 {[%clk 0:03:01]}  d5 {[%clk 0:02:55]} 4. Nc3 {[%clk 0:03:01]}  c6 {[%clk 0:02:54]} 5. cxd5 {[%clk 0:03:00]}  exd5 {[%clk 0:02:55]} 6. f3 {[%clk 0:03:01]}  Bf5 {[%clk 0:02:52]} 7. Bg5 {[%clk 0:02:59]}  h6 {[%clk 0:02:48]} 8. Bh4 {[%clk 0:02:58]}  Be7 {[%clk 0:02:46]} 9. g4 {[%clk 0:02:52]}  Bh7 {[%clk 0:02:41]} 10. Bf2 {[%clk 0:02:52]}  Nbd7 {[%clk 0:02:40]} 11. Bg2 {[%clk 0:02:52]}  O-O {[%clk 0:02:40]} 12. h3 {[%clk 0:02:51]}  Re8 {[%clk 0:02:39]} 13. Qd2 {[%clk 0:02:50]}  Nb6 {[%clk 0:02:38]} 14. b3 {[%clk 0:02:47]}  a5 {[%clk 0:02:37]} 15. e4 {[%clk 0:02:43]}  dxe4 {[%clk 0:02:37]} 16. fxe4 {[%clk 0:02:43]}  a4 {[%clk 0:02:37]} 17. e5 {[%clk 0:02:41]}  Nfd5 {[%clk 0:02:37]} 18. Nxd5 {[%clk 0:02:35]}  Nxd5 {[%clk 0:02:38]} 19. b4 {[%clk 0:02:31]}  Bg5 {[%clk 0:02:37]} 20. Qb2 {[%clk 0:02:19]}  Nf4 {[%clk 0:02:37]} 21. Bf1 {[%clk 0:02:15]}  Qd5 {[%clk 0:02:35]} 22. Rh2 {[%clk 0:02:12]}  Qe4+ {[%clk 0:02:34]} 23. Kd1 {[%clk 0:02:05]}  Rxe5 {[%clk 0:02:34]} 24. h4 {[%clk 0:01:44]}  Nd3 {[%clk 0:02:30]} 25. Qc2 {[%clk 0:01:35]}  Qxg4+ {[%clk 0:02:16]} 26. Qe2 {[%clk 0:01:04]}  Nxf2+ {[%clk 0:02:16]} 27. Rxf2 {[%clk 0:00:57]}  Rxe2 {[%clk 0:02:15]} 28. Nxe2 {[%clk 0:00:57]}  Bxh4 {[%clk 0:02:15]} 29. Rf4 {[%clk 0:00:53]}  Qh5 {[%clk 0:02:06]} 30. Bg2 {[%clk 0:00:45]}  Re8 {[%clk 0:02:05]} 31. Bf3 {[%clk 0:00:45]}  Qb5 {[%clk 0:01:59]} 32. Rxh4 {[%clk 0:00:44]}  Qd3+ {[%clk 0:01:59]} 33. Ke1 {[%clk 0:00:37]}  Qxf3 {[%clk 0:02:00]} 34. Rh2 {[%clk 0:00:33]}  Bd3 {[%clk 0:02:00]} 35. Ra2 {[%clk 0:00:33]}  Rxe2+ {[%clk 0:02:01]} 36. Raxe2 {[%clk 0:00:32]}  Bxe2 {[%clk 0:02:02]} 37. Rxe2 {[%clk 0:00:32]}  Qxa3 {[%clk 0:02:03]} 38. Rb2 {[%clk 0:00:10]}  Qxb2 {[%clk 0:02:03]} 0-1

[Event "December 19 Early 2023"]
[Site "https://www.chess.com"]
[Date "2023.12.19"]
[Round "5"]
[White "Balla, Tamas-Kristof"]
[Black "Arshiya Das"]
[Result "1-0"]
[Board "184"]
[TimeControl "180+1"]
[WhiteFideId "1208497"]
[BlackFideId "25652150"]
[WhiteElo "2306"]
[BlackElo "1481"]
[WhiteTeam "ROU"]
[BlackTeam "IND"]
[WhiteClock "0:00:13"]
[BlackClock "0:00:22"]

1. e4 {[%clk 0:03:00]}  c5 {[%clk 0:03:00]} 2. c3 {[%clk 0:02:51]}  d6 {[%clk 0:02:54]} 3. d4 {[%clk 0:02:51]}  Nf6 {[%clk 0:02:54]} 4. Bd3 {[%clk 0:02:44]}  g6 {[%clk 0:02:52]} 5. h3 {[%clk 0:02:39]}  Bg7 {[%clk 0:02:49]} 6. Nf3 {[%clk 0:02:39]}  O-O {[%clk 0:02:45]} 7. O-O {[%clk 0:02:37]}  Nc6 {[%clk 0:02:41]} 8. Re1 {[%clk 0:02:35]}  b6 {[%clk 0:02:36]} 9. Bg5 {[%clk 0:02:34]}  Bb7 {[%clk 0:02:35]} 10. Nbd2 {[%clk 0:02:32]}  Qc7 {[%clk 0:02:28]} 11. Nf1 {[%clk 0:02:29]}  Rad8 {[%clk 0:02:24]} 12. Qc1 {[%clk 0:02:26]}  cxd4 {[%clk 0:02:16]} 13. cxd4 {[%clk 0:02:25]}  Qb8 {[%clk 0:02:14]} 14. Bh6 {[%clk 0:02:17]}  Rc8 {[%clk 0:02:12]} 15. Bxg7 {[%clk 0:02:16]}  Kxg7 {[%clk 0:02:13]} 16. Qe3 {[%clk 0:02:06]}  Qa8 {[%clk 0:02:10]} 17. Ng3 {[%clk 0:02:03]}  e5 {[%clk 0:02:07]} 18. d5 {[%clk 0:02:01]}  Nb4 {[%clk 0:02:02]} 19. Bb1 {[%clk 0:01:40]}  Kh8 {[%clk 0:02:01]} 20. Qg5 {[%clk 0:01:36]}  Ng8 {[%clk 0:02:00]} 21. Nh4 {[%clk 0:01:26]}  f6 {[%clk 0:01:55]} 22. Qg4 {[%clk 0:01:22]}  Nc2 {[%clk 0:01:45]} 23. Bxc2 {[%clk 0:01:22]}  Rxc2 {[%clk 0:01:46]} 24. Rac1 {[%clk 0:01:18]}  Rfc8 {[%clk 0:01:42]} 25. Rxc2 {[%clk 0:01:13]}  Rxc2 {[%clk 0:01:42]} 26. Qd7 {[%clk 0:01:02]}  Qb8 {[%clk 0:01:34]} 27. Nf3 {[%clk 0:00:42]}  Qc7 {[%clk 0:01:25]} 28. Qa4 {[%clk 0:00:39]}  a5 {[%clk 0:01:21]} 29. h4 {[%clk 0:00:37]}  Rxb2 {[%clk 0:01:20]} 30. h5 {[%clk 0:00:36]}  Rb4 {[%clk 0:01:12]} 31. Qe8 {[%clk 0:00:35]}  Qe7 {[%clk 0:01:11]} 32. Qb8 {[%clk 0:00:33]}  Ba6 {[%clk 0:01:06]} 33. Nh4 {[%clk 0:00:31]}  Qb7 {[%clk 0:00:38]} 34. Qxd6 {[%clk 0:00:30]}  Qf7 {[%clk 0:00:35]} 35. hxg6 {[%clk 0:00:19]}  hxg6 {[%clk 0:00:36]} 36. Rc1 {[%clk 0:00:20]}  Rc4 {[%clk 0:00:35]} 37. Rxc4 {[%clk 0:00:18]}  Bxc4 {[%clk 0:00:36]} 38. Qxb6 {[%clk 0:00:19]}  Bxa2 {[%clk 0:00:36]} 39. Qxa5 {[%clk 0:00:19]}  Bc4 {[%clk 0:00:36]} 40. Qc5 {[%clk 0:00:17]}  Ba6 {[%clk 0:00:34]} 41. d6 {[%clk 0:00:14]}  Kg7 {[%clk 0:00:32]} 42. Qc6 {[%clk 0:00:12]}  Bb7 {[%clk 0:00:31]} 43. Qb6 {[%clk 0:00:11]}  Nh6 {[%clk 0:00:29]} 44. Qd8 {[%clk 0:00:10]}  Ng4 {[%clk 0:00:27]} 45. d7 {[%clk 0:00:09]}  Nh6 {[%clk 0:00:25]} 46. Qe8 {[%clk 0:00:08]}  Ng8 {[%clk 0:00:22]} 47. d8=Q {[%clk 0:00:09]}  Qxe8 {[%clk 0:00:21]} 48. Qxe8 {[%clk 0:00:09]}  Nh6 {[%clk 0:00:20]} 49. Qxg6+ {[%clk 0:00:10]}  Kf8 {[%clk 0:00:21]} 50. Qxh6+ {[%clk 0:00:11]}  Ke7 {[%clk 0:00:22]} 51. Nhf5+ {[%clk 0:00:11]}  Kd7 {[%clk 0:00:23]} 52. Qxf6 {[%clk 0:00:12]}  Kc7 {[%clk 0:00:23]} 53. Qd6+ {[%clk 0:00:12]}  Kc8 {[%clk 0:00:22]} 54. Ne7# {[%clk 0:00:13]} 1-0